,Portfolio,Expense Area,Cost Centre,Expense Type,Account Code,Amount,Supplier Name,SupplierId,Pay Date,Transaction No.
INSERTED DETAIL,Resources & Corporate Governance ,Highways,WHG00,Materials,0303,18.00,Arco Limited,100015,18/07/2013,10187197
INSERTED DETAIL,Resources & Corporate Governance,Handy man,WHM00,Materials,0303,45.90,Arco Limited,100015,18/07/2013,10187197
INSERTED DETAIL,Resources & Corporate Governance ,Toilet Cleaning,WBC01,Personal Protective Clothing,0340,11.27,Arco Limited,100015,18/07/2013,10187197
INSERTED DETAIL,Resources & Corporate Governance ,Grounds Maintenance,WGM00,Personal Protective Clothing,0340,118.34,Arco Limited,100015,18/07/2013,10187197
INSERTED DETAIL,Resources & Corporate Governance ,Highways,WHG00,Personal Protective Clothing,0340,16.90,Arco Limited,100015,18/07/2013,10187197
INSERTED DETAIL,Resources & Corporate Governance,Handy man,WHM00,Personal Protective Clothing,0340,41.90,Arco Limited,100015,18/07/2013,10187197
INSERTED DETAIL,Resources & Corporate Governance ,Street Cleansing,WSC00,Personal Protective Clothing,0340,135.24,Arco Limited,100015,18/07/2013,10187197
INSERTED DETAIL,Resources & Corporate Governance ,Garage Internal,WVR01,Personal Protective Clothing,0340,22.54,Arco Limited,100015,18/07/2013,10187197
INSERTED DETAIL,Resources & Corporate Governance ,Domestic Waste Collection,WWC00,Personal Protective Clothing,0340,236.67,Arco Limited,100015,18/07/2013,10187197
INSERTED DETAIL,Resources & Corporate Governance ,Trade Waste Collection,WWC01,Personal Protective Clothing,0340,22.54,Arco Limited,100015,18/07/2013,10187197
INSERTED DETAIL,Resources & Corporate Governance ,WSU Depot,WDP00,Messing Facilities,0332,426.24,Arco Limited,100015,18/07/2013,10187804
INSERTED DETAIL,Sustainable Inclusive Communities,Housing Options Team,HOT00,Rents,0140,672.00,Alma Lodge Hotel,100026,04/07/2013,10187227
INSERTED DETAIL,Resources & Corporate Governance,Handy man,WHM00,External Contractor & Operator,0742,580.00,AWM Electrical Contractors Ltd,100051,18/07/2013,10186869
INSERTED DETAIL,Housing Revenue Account ,Unplanned Maintenance and Repair,UMR00,R&M External Contractors,0100,2324.54,AWM Electrical Contractors Ltd,100051,04/07/2013,10187463
INSERTED DETAIL,Housing Revenue Account ,Repairs and Maintenance - Void works,UMR09,R&M External Contractors,0100,833.93,AWM Electrical Contractors Ltd,100051,04/07/2013,10187463
INSERTED DETAIL,Capital Program ,Rewiring,HCE20,Capital Contract Payments,5000,204.98,AWM Electrical Contractors Ltd,100051,04/07/2013,10187463
INSERTED DETAIL,Housing Revenue Account ,Unplanned Maintenance and Repair,UMR00,R&M External Contractors,0100,567.63,AWM Electrical Contractors Ltd,100051,04/07/2013,10187464
INSERTED DETAIL,Housing Revenue Account ,Repairs and Maintenance - Void works,UMR09,R&M External Contractors,0100,106.82,AWM Electrical Contractors Ltd,100051,04/07/2013,10187464
INSERTED DETAIL,Capital Program ,Rewiring,HCE20,Capital Contract Payments,5000,1613.00,AWM Electrical Contractors Ltd,100051,04/07/2013,10187464
INSERTED DETAIL,Housing Revenue Account ,Unplanned Maintenance and Repair,UMR00,R&M External Contractors,0100,17.02,AWM Electrical Contractors Ltd,100051,18/07/2013,10188100
INSERTED DETAIL,Housing Revenue Account ,Repairs and Maintenance - Void works,UMR09,R&M External Contractors,0100,1084.34,AWM Electrical Contractors Ltd,100051,18/07/2013,10188100
INSERTED DETAIL,Capital Program ,Disabled Adaptations,HCR01,Capital Contract Payments,5000,454.03,AWM Electrical Contractors Ltd,100051,18/07/2013,10188100
INSERTED DETAIL,Housing Revenue Account ,Unplanned Maintenance and Repair,UMR00,R&M External Contractors,0100,1611.03,AWM Electrical Contractors Ltd,100051,18/07/2013,10188231
INSERTED DETAIL,Housing Revenue Account ,Repairs and Maintenance - Void works,UMR09,R&M External Contractors,0100,1941.43,AWM Electrical Contractors Ltd,100051,18/07/2013,10188231
INSERTED DETAIL,Housing Revenue Account ,Unplanned Maintenance and Repair,UMR00,R&M External Contractors,0100,4462.74,AWM Electrical Contractors Ltd,100051,25/07/2013,10188536
INSERTED DETAIL,Housing Revenue Account ,Repairs and Maintenance - Void works,UMR09,R&M External Contractors,0100,55.20,AWM Electrical Contractors Ltd,100051,25/07/2013,10188536
INSERTED DETAIL,Housing Revenue Account ,Unplanned Maintenance and Repair,UMR00,R&M External Contractors,0100,151.72,AWM Electrical Contractors Ltd,100051,25/07/2013,10188749
INSERTED DETAIL,Housing Revenue Account ,Repairs and Maintenance - Void works,UMR09,R&M External Contractors,0100,2537.47,AWM Electrical Contractors Ltd,100051,25/07/2013,10188749
INSERTED DETAIL,Sustainable Environment ,Grass Cutting,PKS13,External Contractor & Operator,0742,3827.00,Brandon And Bretford Parish Council,100153,11/07/2013,10187858
INSERTED DETAIL,Resources & Corporate Governance ,Council Tax and NNDR Collection,CTX01,External Legal Costs,0741,42.50,Bristow & Sutor,100159,25/07/2013,10188483
INSERTED DETAIL,Housing Revenue Account ,Control Centre (HRA),CCE00,Telephone Expenses,0371,4851.19,British Telecommunications Plc,100161,04/07/2013,10185149
INSERTED DETAIL,Housing Revenue Account ,Multi-Storey Flats,MSF00,Telephone Expenses,0371,79.93,British Telecommunications Plc,100161,04/07/2013,10185149
INSERTED DETAIL,Sustainable Inclusive Communities,Woodside Park,TVR00,Telephone Expenses,0371,83.78,British Telecommunications Plc,100161,04/07/2013,10185149
INSERTED DETAIL,Resources & Corporate Governance ,WSU Depot,WDP00,Telephone Expenses,0371,424.56,British Telecommunications Plc,100161,18/07/2013,10187693
INSERTED DETAIL,Sustainable Inclusive Communities,CL Grants,CGS00,Grants To Voluntary Organisations,0720,3000.00,Benn Partnership Centre,100235,25/07/2013,10188722
INSERTED DETAIL,Housing Revenue Account ,Unplanned Maintenance and Repair,UMR00,R&M External Contractors,0100,1886.00,Barron McCann Ltd,100248,11/07/2013,10187860
INSERTED DETAIL,Resources & Corporate Governance,Corporate Property R&M,CPA01,Electricity,0130,1730.00,Barron McCann Ltd,100248,25/07/2013,10187930
INSERTED DETAIL,Housing Revenue Account ,Unplanned Maintenance and Repair,UMR00,R&M External Contractors,0100,526.40,Barron McCann Ltd,100248,18/07/2013,10188224
INSERTED DETAIL,Housing Revenue Account ,Control Centre CCTV,CCE01,New Equipment,0300,376.00,Barron McCann Ltd,100248,18/07/2013,10188224
INSERTED DETAIL,Resources & Corporate Governance,Corporate Property R&M,CPA01,R&M External Contractors,0100,989.07,Chillaire Service & Maintenance Ltd,100305,25/07/2013,10188504
INSERTED DETAIL,Housing Revenue Account ,Voids & Allocations Team,MAN24,New Equipment,0300,510.00,Stone Computers,100390,04/07/2013,10187494
INSERTED DETAIL,Resources & Corporate Governance ,General Administration,WAD00,Hardware Purchase,0375,580.00,Stone Computers,100390,11/07/2013,10187775
INSERTED DETAIL,Sustainable Environment ,East European Violence Project,CAD32,IT Capital Expenditure,5025,580.00,Stone Computers,100390,11/07/2013,10187995
INSERTED DETAIL,Sustainable Environment ,Clinical Waste,REF04,External Contractor & Operator,0742,507.31,OCS Group UK Ltd t/a Cannon,100436,18/07/2013,10187948
INSERTED DETAIL,Sustainable Environment ,Caldecott Park/Town Centre Area,PKS00,R&M External Contractors,0100,1500.00,Chains & Lifting Tackle (Coventry) Ltd,100521,18/07/2013,10187557
INSERTED DETAIL,Resources & Corporate Governance,Corporate Property R&M,CPA01,R&M External Contractors,0100,436.50,Dunchurch Services (Rugby) Ltd,100565,11/07/2013,10186873
INSERTED DETAIL,Resources & Corporate Governance,Corporate Property R&M,CPA01,R&M External Contractors,0100,2575.00,Dunchurch Services (Rugby) Ltd,100565,18/07/2013,10187943
INSERTED DETAIL,Capital Program ,Bathroom Modifications,HIS01,Capital Contract Payments,5000,10785.00,JADA Building & Maintenance Services Ltd,100583,11/07/2013,10187516
INSERTED DETAIL,Capital Program ,Bathroom Modifications,HIS01,Capital Contract Payments,5000,22375.00,JADA Building & Maintenance Services Ltd,100583,11/07/2013,10187811
INSERTED DETAIL,Housing Revenue Account ,Repairs and Maintenance - Void works,UMR09,R&M External Contractors,0100,777.38,Dulux Decorator Centres,100597,11/07/2013,10187826
INSERTED DETAIL,Housing Revenue Account ,Albert Square AP,AGP20,Gas,0131,1204.21,ESPO,100641,11/07/2013,10186815
INSERTED DETAIL,Housing Revenue Account ,Tanser Court AP,AGP17,Gas,0131,1084.02,ESPO,100641,11/07/2013,10186816
INSERTED DETAIL,Housing Revenue Account ,Lesley Souter House AP,AGP16,Gas,0131,998.65,ESPO,100641,11/07/2013,10186817
INSERTED DETAIL,Resources & Corporate Governance,Corporate Property R&M,CPA01,R&M External Contractors,0100,1948.00,ESPO,100641,04/07/2013,10187477
INSERTED DETAIL,Resources & Corporate Governance,Corporate Property Central Utilities,CPA02,Gas,0131,688.35,ESPO,100641,18/07/2013,10188116
INSERTED DETAIL,Resources & Corporate Governance ,WSU Depot,WDP00,Gas,0131,834.07,ESPO,100641,18/07/2013,10188121
INSERTED DETAIL,Housing Revenue Account ,Tanser Court AP,AGP17,Gas,0131,1005.48,ESPO,100641,18/07/2013,10188134
INSERTED DETAIL,Housing Revenue Account ,Lesley Souter House AP,AGP16,Gas,0131,757.68,ESPO,100641,18/07/2013,10188135
INSERTED DETAIL,Housing Revenue Account ,Albert Square AP,AGP20,Gas,0131,1089.13,ESPO,100641,18/07/2013,10188136
INSERTED DETAIL,Resources & Corporate Governance,Corporate Property Central Utilities,CPA02,Gas,0131,1109.84,ESPO,100641,18/07/2013,10188138
INSERTED DETAIL,Resources & Corporate Governance ,Town Hall,OFF00,Materials,0303,953.40,Greenham,100890,04/07/2013,10187196
INSERTED DETAIL,Resources & Corporate Governance ,Grounds Maintenance,WGM00,Materials,0303,1659.22,BHGS Ltd,100950,18/07/2013,10187056
INSERTED DETAIL,Sustainable Environment,Regulatory Services,REG00,Recruitment Expenses,0012,700.00,C.I.E.H,101121,04/07/2013,10187543
INSERTED DETAIL,Resources & Corporate Governance ,Grounds Maintenance,WGM00,External Contractor & Operator,0742,7344.00,K A Hicks,101216,11/07/2013,10185733
INSERTED DETAIL,Resources & Corporate Governance ,Grounds Maintenance,WGM00,External Contractor & Operator,0742,7484.00,K A Hicks,101216,11/07/2013,10187452
INSERTED DETAIL,,User Balance Sheet Cost Centre,BSU,Section Agreements,9865,14757.75,Long Lawford Parish Council,101228,11/07/2013,10187938
INSERTED DETAIL,Resources & Corporate Governance,Handy man,WHM00,Materials,0303,570.00,Melbros Ltd,101291,25/07/2013,10185805
INSERTED DETAIL,Resources & Corporate Governance,Handy man,WHM00,Materials,0303,1023.00,Melbros Ltd,101291,25/07/2013,10187330
INSERTED DETAIL,Resources & Corporate Governance ,Street Cleansing,WSC00,Vehicle Repair and Maintenance,0200,817.62,Noden Truck Centre Ltd,101368,11/07/2013,10187675
INSERTED DETAIL,Sustainable Inclusive Communities,CL Grants,CGS00,Grants To Voluntary Organisations,0720,3000.00,New Bilton Community Association,101389,25/07/2013,10188721
INSERTED DETAIL,Economy Development & Culture,Visitor Centre,VSC00,Events Tickets - Zero Rated,1405,1238.25,National Express Ltd,101392,18/07/2013,10188356
INSERTED DETAIL,Sustainable Inclusive Communities,Sewage Disposal Plant,SDP00,R&M External Contractors,0100,520.28,PJT Pumping Services,101438,11/07/2013,10187747
INSERTED DETAIL,,Balance Sheet,BS,Car Loan Scheme,9261,3693.00,REDACTED PERSONAL DATA,101468,25/07/2013,10188820
INSERTED DETAIL,Resources & Corporate Governance,Central Business Support Services,CSS15,Photocopying,0354,3460.73,Xerox (UK) Ltd,101502,18/07/2013,10187935
INSERTED DETAIL,Resources & Corporate Governance,Central Business Support Services,CSS15,Photocopying,0354,484.14,Xerox (UK) Ltd,101502,18/07/2013,10187936
INSERTED DETAIL,Resources & Corporate Governance ,Highways,WHG00,External Contractor & Operator,0742,463.33,Lafarge Aggregates Limited,101503,11/07/2013,10185768
INSERTED DETAIL,Capital Program ,Electric to Gas Conversions,HIM04,Capital Contract Payments,5000,2763.00,Reeds Plumbing & Heating Contractors Ltd,101504,04/07/2013,10187462
INSERTED DETAIL,Housing Revenue Account ,Property Maintenance,MAN23,Agency Staff,0003,485.63,Rugby Recruitment Services Ltd,101521,04/07/2013,10187161
INSERTED DETAIL,Housing Revenue Account ,Property Maintenance,MAN23,Agency Staff,0003,715.96,Rugby Recruitment Services Ltd,101521,04/07/2013,10187525
INSERTED DETAIL,Housing Revenue Account ,Property Maintenance,MAN23,Agency Staff,0003,485.63,Rugby Recruitment Services Ltd,101521,25/07/2013,10188515
INSERTED DETAIL,Housing Revenue Account ,Property Maintenance,MAN23,Agency Staff,0003,485.63,Rugby Recruitment Services Ltd,101521,25/07/2013,10188516
INSERTED DETAIL,Housing Revenue Account ,Property Maintenance,MAN23,Agency Staff,0003,485.63,Rugby Recruitment Services Ltd,101521,25/07/2013,10188724
INSERTED DETAIL,Sustainable Inclusive Communities,CL Grants,CGS00,Grants To Voluntary Organisations,0720,1500.00,Rugby Rosa,101534,18/07/2013,10188104
INSERTED DETAIL,Economy Development & Culture,Art Gallery and Museum,AGM00,Postage & Distribution,0370,14.76,Royal Mail,101554,11/07/2013,10187316
INSERTED DETAIL,Economy Development & Culture,Building Control Services,BCS00,Postage & Distribution,0370,0.13,Royal Mail,101554,11/07/2013,10187316
INSERTED DETAIL,Economy Development & Culture,Building Control Services Non-Fee Earning Account,BCS01,Postage & Distribution,0370,0.13,Royal Mail,101554,11/07/2013,10187316
INSERTED DETAIL,Economy Development & Culture,Building Regulation Fee Earning Account,BCS99,Postage & Distribution,0370,2.42,Royal Mail,101554,11/07/2013,10187316
INSERTED DETAIL,Economy Development & Culture,Car Parks General,CPK01,Postage & Distribution,0370,43.57,Royal Mail,101554,11/07/2013,10187316
INSERTED DETAIL,Resources & Corporate Governance,Central Business Support Services,CSS15,Postage & Distribution,0370,490.77,Royal Mail,101554,11/07/2013,10187316
INSERTED DETAIL,Resources & Corporate Governance ,Council Tax and NNDR Collection,CTX01,Postage & Distribution,0370,238.08,Royal Mail,101554,11/07/2013,10187316
INSERTED DETAIL,Economy Development & Culture,Decrim. of Car Parking on street parking,DPE02,Postage & Distribution,0370,174.28,Royal Mail,101554,11/07/2013,10187316
INSERTED DETAIL,Resources & Corporate Governance ,Electoral Registration,ERG00,Postage & Distribution,0370,28.17,Royal Mail,101554,11/07/2013,10187316
INSERTED DETAIL,Sustainable Inclusive Communities,Housing Benefit Administration,HBA00,Postage & Distribution,0370,288.57,Royal Mail,101554,11/07/2013,10187316
INSERTED DETAIL,Housing Revenue Account ,Supervision and Management General,MAN00,Postage & Distribution,0370,148.87,Royal Mail,101554,11/07/2013,10187316
INSERTED DETAIL,Economy Development & Culture,Planning General/Income,PLN00,Postage & Distribution,0370,317.60,Royal Mail,101554,11/07/2013,10187316
INSERTED DETAIL,Economy Development & Culture,Visitor Centre,VSC00,Postage & Distribution,0370,15.10,Royal Mail,101554,11/07/2013,10187316
INSERTED DETAIL,Resources & Corporate Governance ,General Administration,WAD00,Postage & Distribution,0370,18.38,Royal Mail,101554,11/07/2013,10187316
INSERTED DETAIL,Resources & Corporate Governance,Central Business Support Services,CSS15,Postage & Distribution,0370,3400.00,Royal Mail,101554,11/07/2013,10187717
INSERTED DETAIL,Resources & Corporate Governance,Central Business Support Services,CSS15,Postage & Distribution,0370,1392.88,Royal Mail,101554,25/07/2013,10187812
INSERTED DETAIL,Resources & Corporate Governance,Other Elections,ELC01,Postage & Distribution,0370,3291.72,Royal Mail,101554,25/07/2013,10187812
INSERTED DETAIL,Resources & Corporate Governance,Corporate Property Central Utilities,CPA02,Water Services,0143,1240.42,Severn Trent Water Ltd,101610,25/07/2013,10188209
INSERTED DETAIL,Resources & Corporate Governance,Corporate Property Central Utilities,CPA02,Water Services,0143,2006.07,Severn Trent Water Ltd,101610,25/07/2013,10188487
INSERTED DETAIL,Capital Program ,Disabled Facilities Grant,REN01,Capital Grants,5014,4757.00,Stannah Stairlifts Ltd,101623,04/07/2013,10187465
INSERTED DETAIL,Capital Program ,Disabled Facilities Grant,REN01,Capital Grants,5014,2141.00,Stannah Stairlifts Ltd,101623,04/07/2013,10187469
INSERTED DETAIL,Capital Program ,Disabled Adaptations,HCR01,Capital Contract Payments,5000,5828.66,Stannah Stairlifts Ltd,101623,11/07/2013,10187714
INSERTED DETAIL,Capital Program ,Disabled Adaptations,HCR01,Capital Contract Payments,5000,1020.00,Stannah Stairlifts Ltd,101623,11/07/2013,10187851
INSERTED DETAIL,Sustainable Environment ,Caldecott Park/Town Centre Area,PKS00,Maintenance of Equipment,0301,1618.80,Smp (Playgrounds) Ltd,101637,18/07/2013,10187559
INSERTED DETAIL,Housing Revenue Account ,Unplanned Maintenance and Repair,UMR00,R&M External Contractors,0100,433.75,Steve Diston Contract Flooring,101668,11/07/2013,10184656
INSERTED DETAIL,Economy Development & Culture,Street Furniture,HIG01,External Contractor & Operator,0742,1077.40,SignPost Solutions Ltd t/a Signfix,101672,04/07/2013,10187537
INSERTED DETAIL,Resources & Corporate Governance ,Domestic Waste Collection,WWC00,Vehicle Running Costs,0201,423.97,HI-Q Motorway,101736,04/07/2013,10187322
INSERTED DETAIL,Resources & Corporate Governance ,Trade Waste Collection,WWC01,Vehicle Running Costs,0201,485.91,HI-Q Motorway,101736,04/07/2013,10187322
INSERTED DETAIL,Resources & Corporate Governance ,Domestic Waste Collection,WWC00,Vehicle Running Costs,0201,738.95,HI-Q Motorway,101736,25/07/2013,10187902
INSERTED DETAIL,Resources & Corporate Governance ,Domestic Waste Collection,WWC00,Vehicle Running Costs,0201,279.91,HI-Q Motorway,101736,25/07/2013,10187903
INSERTED DETAIL,Resources & Corporate Governance ,Trade Waste Collection,WWC01,Vehicle Running Costs,0201,394.00,HI-Q Motorway,101736,25/07/2013,10187903
INSERTED DETAIL,Resources & Corporate Governance ,Grounds Maintenance,WGM00,Vehicle Running Costs,0201,1006.40,HI-Q Motorway,101736,25/07/2013,10187904
INSERTED DETAIL,,User Balance Sheet Cost Centre,BSU,Section Agreements,9865,75610.91,Warwickshire County Council,101841,04/07/2013,10187068
INSERTED DETAIL,CSW Superfast Broadband,CSW Superfast Broadband,RBB00,Capital Contract Payments,5000,5453.43,Warwickshire County Council,101893,25/07/2013,10188494
INSERTED DETAIL,Housing Revenue Account ,Unplanned Maintenance and Repair,UMR00,R&M External Contractors,0100,906.09,Adroit Services Ltd,101939,04/07/2013,10187460
INSERTED DETAIL,Capital Program ,Electric to Gas Conversions,HIM04,Capital Contract Payments,5000,169.09,Adroit Services Ltd,101939,04/07/2013,10187460
INSERTED DETAIL,Capital Program ,Electric to Gas Conversions,HIM04,Capital Contract Payments,5000,2886.38,Adroit Services Ltd,101939,04/07/2013,10187533
INSERTED DETAIL,Capital Program ,Electric to Gas Conversions,HIM04,Capital Contract Payments,5000,5772.76,Adroit Services Ltd,101939,11/07/2013,10187634
INSERTED DETAIL,Housing Revenue Account ,Unplanned Maintenance and Repair,UMR00,R&M External Contractors,0100,1027.59,Adroit Services Ltd,101939,18/07/2013,10188101
INSERTED DETAIL,Housing Revenue Account ,Unplanned Maintenance and Repair,UMR00,R&M External Contractors,0100,948.43,Adroit Services Ltd,101939,18/07/2013,10188229
INSERTED DETAIL,Housing Revenue Account ,Unplanned Maintenance and Repair,UMR00,R&M External Contractors,0100,1450.00,Adroit Services Ltd,101939,25/07/2013,10188741
INSERTED DETAIL,Resources & Corporate Governance ,"Communications, Consultation and Information Team",BTR20,Publicity & Marketing,0377,1000.00,Johnston Publishing Ltd,107468,11/07/2013,10187715
INSERTED DETAIL,Resources & Corporate Governance ,Central Telephone Service,TEL00,Telephone Expenses,0371,1042.77,British Telecommunications PLC,108425,25/07/2013,10188826
INSERTED DETAIL,Sustainable Environment ,Caldecott Park/Town Centre Area,PKS00,R&M External Contractors,0100,576.25,1ST CLASS HYGIENE LTD,110029,25/07/2013,10187918
INSERTED DETAIL,Resources & Corporate Governance ,Garage Internal,WVR01,Materials,0303,27800.00,Watson Petroleum,110361,18/07/2013,10188155
INSERTED DETAIL,Resources & Corporate Governance,Corporate Property R&M,CPA01,R&M External Contractors,0100,796.09,Croxford Electrical Ltd,110451,04/07/2013,10186798
INSERTED DETAIL,Resources & Corporate Governance,Central Business Support Services,CSS15,Photocopying,0354,505.83,Ricoh UK Limited,111532,11/07/2013,10187708
INSERTED DETAIL,Resources & Corporate Governance,Central Business Support Services,CSS15,Photocopying,0354,578.44,Ricoh UK Limited,111532,11/07/2013,10187740
INSERTED DETAIL,Resources & Corporate Governance,Central Business Support Services,CSS15,Photocopying,0354,1398.10,Ricoh UK Limited,111532,25/07/2013,10188524
INSERTED DETAIL,Resources & Corporate Governance,Central Business Support Services,CSS15,Photocopying,0354,741.06,Ricoh UK Limited,111532,25/07/2013,10188841
INSERTED DETAIL,Resources & Corporate Governance ,Grounds Maintenance,WGM00,External Contractor & Operator,0742,3495.87,Mark Smithers,112612,25/07/2013,10188069
INSERTED DETAIL,Resources & Corporate Governance ,Maintenance of Customer Services Systems,CIS21,Software Maintenance,0374,1445.00,Civica UK Ltd,112724,18/07/2013,10185377
INSERTED DETAIL,,Open Revenues Data Cleansing,OPR01,Capital Contract Payments,5000,3850.00,Civica UK Ltd,112724,25/07/2013,10188470
INSERTED DETAIL,Resources & Corporate Governance ,Domestic Waste Collection,WWC00,Agency Staff,0003,518.03,Extra Personnel Limited,112996,11/07/2013,10185767
INSERTED DETAIL,Resources & Corporate Governance ,Domestic Waste Collection,WWC00,Agency Staff,0003,508.37,Extra Personnel Limited,112996,11/07/2013,10187492
INSERTED DETAIL,Resources & Corporate Governance ,Domestic Waste Collection,WWC00,Agency Staff,0003,876.40,Extra Personnel Limited,112996,11/07/2013,10187873
INSERTED DETAIL,Resources & Corporate Governance ,Domestic Waste Collection,WWC00,Agency Staff,0003,970.80,Extra Personnel Limited,112996,25/07/2013,10188406
INSERTED DETAIL,Sustainable Inclusive Communities,Housing Benefit Administration,HBA00,Agency Staff,0003,904.50,Badenoch & Clark,113435,04/07/2013,10187468
INSERTED DETAIL,Sustainable Inclusive Communities,Housing Benefit Administration,HBA00,Agency Staff,0003,1012.50,Badenoch & Clark,113435,11/07/2013,10187821
INSERTED DETAIL,Sustainable Inclusive Communities,Housing Benefit Administration,HBA00,Agency Staff,0003,1005.75,Badenoch & Clark,113435,25/07/2013,10188481
INSERTED DETAIL,Sustainable Environment ,Cemeteries General,CEM00,Purchases for Resale,0305,1225.50,Streetmaster (South Wales) Ltd,114898,18/07/2013,10187954
INSERTED DETAIL,Resources & Corporate Governance ,Grounds Maintenance,WGM00,Contract Hire,0220,877.14,Townsend Vehicle Hire,115165,18/07/2013,10187578
INSERTED DETAIL,Resources & Corporate Governance ,WSU Depot,WDP00,Messing Facilities,0332,528.80,Siemens Financial Services Ltd,116057,18/07/2013,10187051
INSERTED DETAIL,Resources & Corporate Governance ,WSU Depot,WDP00,Messing Facilities,0332,528.80,Siemens Financial Services Ltd,116057,18/07/2013,10188182
INSERTED DETAIL,Resources & Corporate Governance ,WSU Depot,WDP00,Messing Facilities,0332,3158.62,Siemens Financial Services Ltd,116057,25/07/2013,10188492
INSERTED DETAIL,Sustainable Environment ,Cemeteries General,CEM00,R&M External Contractors,0100,640.00,Lushglen,117749,18/07/2013,10188222
INSERTED DETAIL,Resources & Corporate Governance,Corporate Property Central Utilities,CPA02,Electricity,0130,8927.62,Southern Electric,118976,25/07/2013,10188065
INSERTED DETAIL,Resources & Corporate Governance,Corporate Property Central Utilities,CPA02,Electricity,0130,5237.31,Southern Electric,118976,18/07/2013,10188066
INSERTED DETAIL,Resources & Corporate Governance ,WSU Depot,WDP00,Electricity,0130,489.73,Southern Electric,118976,18/07/2013,10188066
INSERTED DETAIL,Resources & Corporate Governance ,Caldecott Park Cafe,WGM02,Electricity,0130,627.10,Southern Electric,118976,18/07/2013,10188066
INSERTED DETAIL,Resources & Corporate Governance ,Street Cleansing,WSC00,Agency Staff,0003,368.89,G-Staff Ltd,120173,11/07/2013,10187105
INSERTED DETAIL,Resources & Corporate Governance ,Domestic Waste Collection,WWC00,Agency Staff,0003,955.69,G-Staff Ltd,120173,11/07/2013,10187105
INSERTED DETAIL,Resources & Corporate Governance ,Trade Waste Collection,WWC01,Agency Staff,0003,341.06,G-Staff Ltd,120173,11/07/2013,10187105
INSERTED DETAIL,Resources & Corporate Governance ,Domestic Waste Collection,WWC00,Agency Staff,0003,916.19,G-Staff Ltd,120173,11/07/2013,10187361
INSERTED DETAIL,Resources & Corporate Governance ,Trade Waste Collection,WWC01,Agency Staff,0003,585.59,G-Staff Ltd,120173,11/07/2013,10187361
INSERTED DETAIL,Resources & Corporate Governance ,Domestic Waste Collection,WWC00,Agency Staff,0003,1450.18,G-Staff Ltd,120173,11/07/2013,10187788
INSERTED DETAIL,Resources & Corporate Governance ,Toilet Cleaning,WBC01,Agency Staff,0003,99.70,G-Staff Ltd,120173,18/07/2013,10188217
INSERTED DETAIL,Resources & Corporate Governance ,Street Cleansing,WSC00,Agency Staff,0003,474.52,G-Staff Ltd,120173,18/07/2013,10188217
INSERTED DETAIL,Resources & Corporate Governance ,Domestic Waste Collection,WWC00,Agency Staff,0003,2176.16,G-Staff Ltd,120173,18/07/2013,10188217
INSERTED DETAIL,Resources & Corporate Governance ,Trade Waste Collection,WWC01,Agency Staff,0003,585.59,G-Staff Ltd,120173,18/07/2013,10188217
INSERTED DETAIL,Resources & Corporate Governance ,Street Cleansing,WSC00,Agency Staff,0003,795.29,G-Staff Ltd,120173,25/07/2013,10188693
INSERTED DETAIL,Resources & Corporate Governance ,Domestic Waste Collection,WWC00,Agency Staff,0003,1069.05,G-Staff Ltd,120173,25/07/2013,10188693
INSERTED DETAIL,Resources & Corporate Governance ,Trade Waste Collection,WWC01,Agency Staff,0003,585.59,G-Staff Ltd,120173,25/07/2013,10188693
INSERTED DETAIL,Capital Program ,Housing Management System,HCE08,Capital Contract Payments,5000,1061.41,Northgate Information Solutions UK Ltd,121606,04/07/2013,10187248
INSERTED DETAIL,Housing Revenue Account ,Maintenance of Open Spaces,MOS00,External Contractor & Operator,0742,479.38,Brinklow Quarry,122921,25/07/2013,10187762
INSERTED DETAIL,Resources & Corporate Governance ,Highways,WHG00,External Contractor & Operator,0742,55.98,Brinklow Quarry,122921,25/07/2013,10187762
INSERTED DETAIL,Sustainable Environment ,Caldecott Park/Town Centre Area,PKS00,Maintenance of Equipment,0301,498.85,Proludic,123148,18/07/2013,10187552
INSERTED DETAIL,Resources & Corporate Governance ,Customer and Information Strategy,CIS10,Hardware Maintenance,0376,2601.12,Cable & Wireless/T/A Vodafone,123224,11/07/2013,10187820
INSERTED DETAIL,Resources & Corporate Governance ,Central Telephone Service,TEL00,Telephone Expenses,0371,1126.44,Cable & Wireless/T/A Vodafone,123224,11/07/2013,10187822
INSERTED DETAIL,Resources & Corporate Governance ,Grounds Maintenance,WGM00,Materials,0303,900.00,Rigby Taylor Ltd,123342,25/07/2013,10188485
INSERTED DETAIL,Housing Revenue Account ,Unplanned Maintenance and Repair,UMR00,R&M External Contractors,0100,481.20,Mike Bs Security Locksmith Ltd,123947,04/07/2013,10187065
INSERTED DETAIL,Resources & Corporate Governance ,Garage Internal,WVR01,Materials,0303,699.86,Shell U.K. Oil Products Limited,125672,11/07/2013,10187700
INSERTED DETAIL,Housing Revenue Account ,Voids & Allocations Team,MAN24,External Contractor & Operator,0742,700.00,George and Company (Surveyors) Ltd,126668,04/07/2013,10187461
INSERTED DETAIL,Resources & Corporate Governance,Handy man,WHM00,External Contractor & Operator,0742,537.50,M P Hudson & Son,129334,04/07/2013,10187573
INSERTED DETAIL,Resources & Corporate Governance,Handy man,WHM00,External Contractor & Operator,0742,641.00,M P Hudson & Son,129334,11/07/2013,10187912
INSERTED DETAIL,Resources & Corporate Governance,Handy man,WHM00,External Contractor & Operator,0742,621.00,M P Hudson & Son,129334,18/07/2013,10188409
INSERTED DETAIL,Capital Program ,Electric to Gas Conversions,HIM04,Capital Contract Payments,5000,679.20,National Grid Gas plc,130213,11/07/2013,10187725
INSERTED DETAIL,Capital Program ,Electric to Gas Conversions,HIM04,Capital Contract Payments,5000,679.20,National Grid Gas plc,130213,11/07/2013,10187726
INSERTED DETAIL,Capital Program ,Electric to Gas Conversions,HIM04,Capital Contract Payments,5000,679.20,National Grid Gas plc,130213,11/07/2013,10187727
INSERTED DETAIL,Capital Program ,Electric to Gas Conversions,HIM04,Capital Contract Payments,5000,566.00,National Grid Gas plc,130213,11/07/2013,10187728
INSERTED DETAIL,Capital Program ,Electric to Gas Conversions,HIM04,Capital Contract Payments,5000,679.20,National Grid Gas plc,130213,11/07/2013,10187729
INSERTED DETAIL,Capital Program ,Electric to Gas Conversions,HIM04,Capital Contract Payments,5000,679.20,National Grid Gas plc,130213,11/07/2013,10187730
INSERTED DETAIL,Capital Program ,Electric to Gas Conversions,HIM04,Capital Contract Payments,5000,679.20,National Grid Gas plc,130213,11/07/2013,10187731
INSERTED DETAIL,Sustainable Environment ,Caldecott Park/Town Centre Area,PKS00,Maintenance of Equipment,0301,785.16,Sutcliffe Play Ltd,131511,18/07/2013,10187864
INSERTED DETAIL,Economy Development & Culture,Car Parks General,CPK01,Training fees,0011,659.00,Alpha Parking Ltd,131720,11/07/2013,10187310
INSERTED DETAIL,Economy Development & Culture,Decrim. of Car Parking on street parking,DPE02,Training fees,0011,2636.00,Alpha Parking Ltd,131720,11/07/2013,10187310
INSERTED DETAIL,Capital Program ,Disabled Facilities Grant,REN01,Capital Grants,5014,3677.00,D K Builders,131946,04/07/2013,10187299
INSERTED DETAIL,Economy Development & Culture,Town Centre CCTV and Management,TVM00,Other Agencies,0734,20115.98,Rugby First Ltd - BID,133176,18/07/2013,10188213
INSERTED DETAIL,Resources & Corporate Governance ,Highways,WHG00,Materials,0303,589.60,Breedon Aggregates England Limited,133309,11/07/2013,10185755
INSERTED DETAIL,Resources & Corporate Governance ,Highways,WHG00,Materials,0303,1342.93,Breedon Aggregates England Limited,133309,04/07/2013,10186942
INSERTED DETAIL,Resources & Corporate Governance ,Highways,WHG00,Materials,0303,1771.83,Breedon Aggregates England Limited,133309,04/07/2013,10187048
INSERTED DETAIL,Resources & Corporate Governance ,Highways,WHG00,Materials,0303,924.35,Breedon Aggregates England Limited,133309,04/07/2013,10187050
INSERTED DETAIL,Resources & Corporate Governance ,Highways,WHG00,Materials,0303,495.00,Breedon Aggregates England Limited,133309,18/07/2013,10187758
INSERTED DETAIL,Resources & Corporate Governance,Handy man,WHM00,External Contractor & Operator,0742,2630.00,Homecare Decorating,133884,18/07/2013,10185693
INSERTED DETAIL,Resources & Corporate Governance,Handy man,WHM00,External Contractor & Operator,0742,566.28,Homecare Decorating,133884,18/07/2013,10186557
INSERTED DETAIL,Resources & Corporate Governance ,"Communications, Consultation and Information Team",BTR20,Consultation,0378,2500.00,Warwickshire Racial Equality Partnership,134811,18/07/2013,10188163
INSERTED DETAIL,,User Balance Sheet Cost Centre,BSU,Section Agreements,9865,13115.03,Rugby Disability Forum,135439,11/07/2013,10187828
INSERTED DETAIL,Resources & Corporate Governance ,Council Tax and NNDR Collection,CTX01,External Legal Costs,0741,1392.00,Summers Nigh Law,136330,04/07/2013,10187604
INSERTED DETAIL,Resources & Corporate Governance ,Grounds Maintenance,WGM00,External Contractor & Operator,0742,1250.00,D J Whitlock Plant Hire,140156,18/07/2013,10188016
INSERTED DETAIL,Resources & Corporate Governance ,Grounds Maintenance,WGM00,External Contractor & Operator,0742,1250.00,D J Whitlock Plant Hire,140156,18/07/2013,10188018
INSERTED DETAIL,Resources & Corporate Governance ,Grounds Maintenance,WGM00,External Contractor & Operator,0742,1100.00,D J Whitlock Plant Hire,140156,18/07/2013,10188019
INSERTED DETAIL,Resources & Corporate Governance ,Grounds Maintenance,WGM00,External Contractor & Operator,0742,2250.00,D J Whitlock Plant Hire,140156,18/07/2013,10188021
INSERTED DETAIL,Resources & Corporate Governance ,Domestic Waste Collection,WWC00,Vehicle Repair and Maintenance,0200,429.42,Midlands Truck & Van Ltd,140322,25/07/2013,10187493
INSERTED DETAIL,Resources & Corporate Governance ,"Communications, Consultation and Information Team",BTR20,Consultation,0378,2800.00,Touch Radio/Rugby FM,140623,11/07/2013,10187777
INSERTED DETAIL,Resources & Corporate Governance ,"Communications, Consultation and Information Team",BTR20,Publicity & Marketing,0377,2121.69,Siteimprove Ltd,140753,11/07/2013,10187914
INSERTED DETAIL,Sustainable Environment ,Violence,CAD01,Grants To Voluntary Organisations,0720,2500.00,Coventry & Warwickshire YMCA,142364,11/07/2013,10187707
INSERTED DETAIL,Resources & Corporate Governance,Corporate Property R&M,CPA01,R&M External Contractors,0100,2467.20,Healthmatic Limited,143256,18/07/2013,10188147
INSERTED DETAIL,Resources & Corporate Governance ,Human Resources Centralised Services,RES31,Training fees,0011,1150.00,Hbinfo Ltd,144002,25/07/2013,10188866
INSERTED DETAIL,Sustainable Inclusive Communities,CL Grants,CGS00,Grants To Voluntary Organisations,0720,33000.00,Warwickshire CAVA,145040,25/07/2013,10188832
INSERTED DETAIL,Resources & Corporate Governance ,Support Services,CIS20,Software Maintenance,0374,1259.00,thetechnologyforge,145065,04/07/2013,10187249
INSERTED DETAIL,Resources & Corporate Governance ,Support Services,CIS20,Software Maintenance,0374,534.00,thetechnologyforge,145065,04/07/2013,10187472
INSERTED DETAIL,Housing Revenue Account ,Control Centre CCTV,CCE01,External Contractor & Operator,0742,15574.92,Securitas Security Personnel Ltd,145079,04/07/2013,10187436
INSERTED DETAIL,Resources & Corporate Governance ,Maintenance of Customer Services Systems,CIS21,Software Maintenance,0374,446.48,Wishtrac House Limited,145089,04/07/2013,10187433
INSERTED DETAIL,Housing Revenue Account ,Property Maintenance,MAN23,Agency Staff,0003,690.00,James Andrews Recruitment Solutions Ltd,145100,04/07/2013,10187656
INSERTED DETAIL,Housing Revenue Account ,Property Maintenance,MAN23,Agency Staff,0003,1218.00,James Andrews Recruitment Solutions Ltd,145100,04/07/2013,10187657
INSERTED DETAIL,Housing Revenue Account ,Property Maintenance,MAN23,Agency Staff,0003,885.00,James Andrews Recruitment Solutions Ltd,145100,04/07/2013,10187658
INSERTED DETAIL,Sustainable Inclusive Communities,Housing Options Team,HOT00,Agency Staff,0003,623.58,James Andrews Recruitment Solutions Ltd,145100,11/07/2013,10187735
INSERTED DETAIL,Sustainable Inclusive Communities,Housing Options Team,HOT00,Agency Staff,0003,516.92,James Andrews Recruitment Solutions Ltd,145100,18/07/2013,10188058
INSERTED DETAIL,Sustainable Inclusive Communities,Housing Options Team,HOT00,Agency Staff,0003,471.79,James Andrews Recruitment Solutions Ltd,145100,18/07/2013,10188059
INSERTED DETAIL,Housing Revenue Account ,Property Maintenance,MAN23,Agency Staff,0003,1232.50,James Andrews Recruitment Solutions Ltd,145100,25/07/2013,10188482
INSERTED DETAIL,Housing Revenue Account ,Property Maintenance,MAN23,Agency Staff,0003,1160.00,James Andrews Recruitment Solutions Ltd,145100,25/07/2013,10188484
INSERTED DETAIL,Housing Revenue Account ,Property Maintenance,MAN23,Agency Staff,0003,900.00,James Andrews Recruitment Solutions Ltd,145100,25/07/2013,10188518
INSERTED DETAIL,Resources & Corporate Governance ,General Administration,WAD00,Training fees,0011,831.39,Keith Cook Training Services,145120,18/07/2013,10187673
INSERTED DETAIL,Resources & Corporate Governance,Handy man,WHM00,Agency Staff,0003,316.50,Blue Arrow Limited,145492,11/07/2013,10186758
INSERTED DETAIL,Resources & Corporate Governance ,Street Cleansing,WSC00,Agency Staff,0003,373.70,Blue Arrow Limited,145492,11/07/2013,10186758
INSERTED DETAIL,Resources & Corporate Governance ,Domestic Waste Collection,WWC00,Agency Staff,0003,595.70,Blue Arrow Limited,145492,11/07/2013,10186758
INSERTED DETAIL,Resources & Corporate Governance ,Trade Waste Collection,WWC01,Agency Staff,0003,504.45,Blue Arrow Limited,145492,11/07/2013,10186758
INSERTED DETAIL,Resources & Corporate Governance,Handy man,WHM00,Agency Staff,0003,237.38,Blue Arrow Limited,145492,11/07/2013,10187091
INSERTED DETAIL,Resources & Corporate Governance ,Street Cleansing,WSC00,Agency Staff,0003,151.50,Blue Arrow Limited,145492,11/07/2013,10187091
INSERTED DETAIL,Resources & Corporate Governance ,Domestic Waste Collection,WWC00,Agency Staff,0003,181.13,Blue Arrow Limited,145492,11/07/2013,10187091
INSERTED DETAIL,Resources & Corporate Governance ,Trade Waste Collection,WWC01,Agency Staff,0003,504.45,Blue Arrow Limited,145492,11/07/2013,10187091
INSERTED DETAIL,Resources & Corporate Governance ,Grounds Maintenance,WGM00,Agency Staff,0003,64.40,Blue Arrow Limited,145492,18/07/2013,10187575
INSERTED DETAIL,Resources & Corporate Governance,Handy man,WHM00,Agency Staff,0003,327.05,Blue Arrow Limited,145492,18/07/2013,10187575
INSERTED DETAIL,Resources & Corporate Governance ,Street Cleansing,WSC00,Agency Staff,0003,227.25,Blue Arrow Limited,145492,18/07/2013,10187575
INSERTED DETAIL,Resources & Corporate Governance ,Domestic Waste Collection,WWC00,Agency Staff,0003,189.18,Blue Arrow Limited,145492,18/07/2013,10187575
INSERTED DETAIL,Resources & Corporate Governance ,Trade Waste Collection,WWC01,Agency Staff,0003,504.45,Blue Arrow Limited,145492,18/07/2013,10187575
INSERTED DETAIL,Resources & Corporate Governance ,Grounds Maintenance,WGM00,Agency Staff,0003,128.80,Blue Arrow Limited,145492,18/07/2013,10187863
INSERTED DETAIL,Resources & Corporate Governance,Handy man,WHM00,Agency Staff,0003,451.98,Blue Arrow Limited,145492,18/07/2013,10187863
INSERTED DETAIL,Resources & Corporate Governance ,Street Cleansing,WSC00,Agency Staff,0003,1358.58,Blue Arrow Limited,145492,18/07/2013,10187863
INSERTED DETAIL,Resources & Corporate Governance ,Domestic Waste Collection,WWC00,Agency Staff,0003,430.55,Blue Arrow Limited,145492,18/07/2013,10187863
INSERTED DETAIL,Resources & Corporate Governance ,Trade Waste Collection,WWC01,Agency Staff,0003,454.50,Blue Arrow Limited,145492,18/07/2013,10187863
INSERTED DETAIL,Resources & Corporate Governance ,Grounds Maintenance,WGM00,Agency Staff,0003,128.80,Blue Arrow Limited,145492,25/07/2013,10188214
INSERTED DETAIL,Resources & Corporate Governance,Handy man,WHM00,Agency Staff,0003,504.84,Blue Arrow Limited,145492,25/07/2013,10188214
INSERTED DETAIL,Resources & Corporate Governance ,Street Cleansing,WSC00,Agency Staff,0003,671.65,Blue Arrow Limited,145492,25/07/2013,10188214
INSERTED DETAIL,Resources & Corporate Governance ,Domestic Waste Collection,WWC00,Agency Staff,0003,575.01,Blue Arrow Limited,145492,25/07/2013,10188214
INSERTED DETAIL,Capital Program ,Vehicle Workshop Extension,VWE00,Capital Contract Payments,5000,10712.25,Three Counties Steel Buildings Limited,145562,11/07/2013,10185334
INSERTED DETAIL,Capital Program ,Vehicle Workshop Extension,VWE00,Capital Contract Payments,5000,3570.70,Three Counties Steel Buildings Limited,145562,11/07/2013,10186585
INSERTED DETAIL,Economy Development & Culture,Street Furniture,HIG01,External Contractor & Operator,0742,2899.56,Opus International Consultants (uk) Ltd,145813,25/07/2013,10188520
INSERTED DETAIL,Capital Program ,Disabled Facilities Grant,REN01,Capital Grants,5014,4495.00,Inhouse Renovations,145963,04/07/2013,10187638
INSERTED DETAIL,Economy Development & Culture,Grants and Subscriptions,LGS00,Grants To Voluntary Organisations,0720,1000.00,Rugby & East Warwickshire Hockey Club,146075,18/07/2013,10188185
INSERTED DETAIL,,Balance Sheet,BS,Car Loan Scheme,9261,2295.00,Clifton Road Car Sales,146363,25/07/2013,10188821
INSERTED DETAIL,Economy Development & Culture,Art Gallery and Museum,AGM00,Contribution to Provisions,0443,3100.00,Faye Claridge,146440,18/07/2013,10187713
INSERTED DETAIL,Resources & Corporate Governance,Handy man,WHM00,Materials,0303,417.08,Sapphire Glass Merchants,146549,25/07/2013,10187897
INSERTED DETAIL,Resources & Corporate Governance ,Street Cleansing,WSC00,Vehicle Repair and Maintenance,0200,910.00,RT Sweeper Services Ltd,146604,04/07/2013,10187356
INSERTED DETAIL,Resources & Corporate Governance,Handy man,WHM00,External Contractor & Operator,0742,715.00,Mick Brown Plastering,146699,11/07/2013,10187582
INSERTED DETAIL,Resources & Corporate Governance ,Domestic Waste Collection,WWC00,Agency Staff,0003,320.66,Fresh Recruitment Solutions (FRS) Ltd,146784,25/07/2013,10188159
INSERTED DETAIL,Resources & Corporate Governance ,Trade Waste Collection,WWC01,Agency Staff,0003,146.75,Fresh Recruitment Solutions (FRS) Ltd,146784,25/07/2013,10188159
INSERTED DETAIL,Resources & Corporate Governance ,Retired Employees,RET00,Additional Pension Payments,0014,22193.42,WCC Pension Fund,146914,25/07/2013,10188497
INSERTED DETAIL,Economy Development & Culture,Art Gallery and Museum,AGM00,Postage & Distribution,0370,9.59,TNT Post Midlands Ltd,146983,04/07/2013,10186925
INSERTED DETAIL,Economy Development & Culture,Building Control Services,BCS00,Postage & Distribution,0370,0.81,TNT Post Midlands Ltd,146983,04/07/2013,10186925
INSERTED DETAIL,Economy Development & Culture,Building Control Services Non-Fee Earning Account,BCS01,Postage & Distribution,0370,0.81,TNT Post Midlands Ltd,146983,04/07/2013,10186925
INSERTED DETAIL,Economy Development & Culture,Building Regulation Fee Earning Account,BCS99,Postage & Distribution,0370,14.54,TNT Post Midlands Ltd,146983,04/07/2013,10186925
INSERTED DETAIL,Resources & Corporate Governance,Central Business Support Services,CSS15,Postage & Distribution,0370,35.48,TNT Post Midlands Ltd,146983,04/07/2013,10186925
INSERTED DETAIL,Resources & Corporate Governance ,Council Tax and NNDR Collection,CTX01,Postage & Distribution,0370,296.84,TNT Post Midlands Ltd,146983,04/07/2013,10186925
INSERTED DETAIL,Resources & Corporate Governance ,Electoral Registration,ERG00,Postage & Distribution,0370,3.30,TNT Post Midlands Ltd,146983,04/07/2013,10186925
INSERTED DETAIL,Sustainable Inclusive Communities,Housing Benefit Administration,HBA00,Postage & Distribution,0370,173.91,TNT Post Midlands Ltd,146983,04/07/2013,10186925
INSERTED DETAIL,Housing Revenue Account ,Supervision and Management General,MAN00,Postage & Distribution,0370,26.69,TNT Post Midlands Ltd,146983,04/07/2013,10186925
INSERTED DETAIL,Economy Development & Culture,Visitor Centre,VSC00,Postage & Distribution,0370,32.38,TNT Post Midlands Ltd,146983,04/07/2013,10186925
INSERTED DETAIL,Resources & Corporate Governance ,General Administration,WAD00,Postage & Distribution,0370,5.34,TNT Post Midlands Ltd,146983,04/07/2013,10186925
INSERTED DETAIL,Economy Development & Culture,Art Gallery and Museum,AGM00,Postage & Distribution,0370,0.58,TNT Post Midlands Ltd,146983,04/07/2013,10187278
INSERTED DETAIL,Economy Development & Culture,Building Control Services,BCS00,Postage & Distribution,0370,1.16,TNT Post Midlands Ltd,146983,04/07/2013,10187278
INSERTED DETAIL,Economy Development & Culture,Building Control Services Non-Fee Earning Account,BCS01,Postage & Distribution,0370,1.16,TNT Post Midlands Ltd,146983,04/07/2013,10187278
INSERTED DETAIL,Economy Development & Culture,Building Regulation Fee Earning Account,BCS99,Postage & Distribution,0370,20.81,TNT Post Midlands Ltd,146983,04/07/2013,10187278
INSERTED DETAIL,Resources & Corporate Governance,Central Business Support Services,CSS15,Postage & Distribution,0370,137.93,TNT Post Midlands Ltd,146983,04/07/2013,10187278
INSERTED DETAIL,Resources & Corporate Governance ,Council Tax and NNDR Collection,CTX01,Postage & Distribution,0370,286.35,TNT Post Midlands Ltd,146983,04/07/2013,10187278
INSERTED DETAIL,Resources & Corporate Governance ,Electoral Registration,ERG00,Postage & Distribution,0370,6.73,TNT Post Midlands Ltd,146983,04/07/2013,10187278
INSERTED DETAIL,Sustainable Inclusive Communities,Housing Benefit Administration,HBA00,Postage & Distribution,0370,134.84,TNT Post Midlands Ltd,146983,04/07/2013,10187278
INSERTED DETAIL,Housing Revenue Account ,Supervision and Management General,MAN00,Postage & Distribution,0370,298.35,TNT Post Midlands Ltd,146983,04/07/2013,10187278
INSERTED DETAIL,Resources & Corporate Governance ,General Administration,WAD00,Postage & Distribution,0370,7.55,TNT Post Midlands Ltd,146983,04/07/2013,10187278
INSERTED DETAIL,Economy Development & Culture,Art Gallery and Museum,AGM00,Postage & Distribution,0370,102.20,TNT Post Midlands Ltd,146983,18/07/2013,10187522
INSERTED DETAIL,Economy Development & Culture,Building Control Services,BCS00,Postage & Distribution,0370,0.52,TNT Post Midlands Ltd,146983,18/07/2013,10187522
INSERTED DETAIL,Economy Development & Culture,Building Control Services Non-Fee Earning Account,BCS01,Postage & Distribution,0370,0.52,TNT Post Midlands Ltd,146983,18/07/2013,10187522
INSERTED DETAIL,Economy Development & Culture,Building Regulation Fee Earning Account,BCS99,Postage & Distribution,0370,9.34,TNT Post Midlands Ltd,146983,18/07/2013,10187522
INSERTED DETAIL,Resources & Corporate Governance,Central Business Support Services,CSS15,Postage & Distribution,0370,50.52,TNT Post Midlands Ltd,146983,18/07/2013,10187522
INSERTED DETAIL,Resources & Corporate Governance ,Council Tax and NNDR Collection,CTX01,Postage & Distribution,0370,172.07,TNT Post Midlands Ltd,146983,18/07/2013,10187522
INSERTED DETAIL,Resources & Corporate Governance ,Electoral Registration,ERG00,Postage & Distribution,0370,29.16,TNT Post Midlands Ltd,146983,18/07/2013,10187522
INSERTED DETAIL,Sustainable Inclusive Communities,Housing Benefit Administration,HBA00,Postage & Distribution,0370,145.80,TNT Post Midlands Ltd,146983,18/07/2013,10187522
INSERTED DETAIL,Housing Revenue Account ,Supervision and Management General,MAN00,Postage & Distribution,0370,81.36,TNT Post Midlands Ltd,146983,18/07/2013,10187522
INSERTED DETAIL,Resources & Corporate Governance ,General Administration,WAD00,Postage & Distribution,0370,0.87,TNT Post Midlands Ltd,146983,18/07/2013,10187522
INSERTED DETAIL,Economy Development & Culture,Art Gallery and Museum,AGM00,Postage & Distribution,0370,0.54,TNT Post Midlands Ltd,146983,18/07/2013,10187814
INSERTED DETAIL,Economy Development & Culture,Building Control Services,BCS00,Postage & Distribution,0370,1.18,TNT Post Midlands Ltd,146983,18/07/2013,10187814
INSERTED DETAIL,Economy Development & Culture,Building Control Services Non-Fee Earning Account,BCS01,Postage & Distribution,0370,1.19,TNT Post Midlands Ltd,146983,18/07/2013,10187814
INSERTED DETAIL,Economy Development & Culture,Building Regulation Fee Earning Account,BCS99,Postage & Distribution,0370,21.33,TNT Post Midlands Ltd,146983,18/07/2013,10187814
INSERTED DETAIL,Resources & Corporate Governance,Central Business Support Services,CSS15,Postage & Distribution,0370,145.93,TNT Post Midlands Ltd,146983,18/07/2013,10187814
INSERTED DETAIL,Resources & Corporate Governance ,Council Tax and NNDR Collection,CTX01,Postage & Distribution,0370,230.77,TNT Post Midlands Ltd,146983,18/07/2013,10187814
INSERTED DETAIL,Resources & Corporate Governance ,Electoral Registration,ERG00,Postage & Distribution,0370,4.49,TNT Post Midlands Ltd,146983,18/07/2013,10187814
INSERTED DETAIL,Sustainable Inclusive Communities,Housing Benefit Administration,HBA00,Postage & Distribution,0370,156.36,TNT Post Midlands Ltd,146983,18/07/2013,10187814
INSERTED DETAIL,Housing Revenue Account ,Supervision and Management General,MAN00,Postage & Distribution,0370,64.33,TNT Post Midlands Ltd,146983,18/07/2013,10187814
INSERTED DETAIL,Economy Development & Culture,Visitor Centre,VSC00,Postage & Distribution,0370,0.60,TNT Post Midlands Ltd,146983,18/07/2013,10187814
INSERTED DETAIL,Resources & Corporate Governance ,General Administration,WAD00,Postage & Distribution,0370,5.34,TNT Post Midlands Ltd,146983,18/07/2013,10187814
INSERTED DETAIL,Resources & Corporate Governance,Corporate Property R&M,CPA01,R&M External Contractors,0100,1670.00,GE Construction,146991,11/07/2013,10187663
INSERTED DETAIL,Housing Revenue Account ,Unplanned Maintenance and Repair,UMR00,R&M External Contractors,0100,1658.96,Integral UK Ltd,147080,04/07/2013,10187289
INSERTED DETAIL,Resources & Corporate Governance ,Domestic Waste Collection,WWC00,External Contractor & Operator,0742,750.00,James Baxter Haulage Ltd,147159,04/07/2013,10186330
INSERTED DETAIL,Resources & Corporate Governance ,Domestic Waste Collection,WWC00,External Contractor & Operator,0742,450.00,James Baxter Haulage Ltd,147159,18/07/2013,10187937
INSERTED DETAIL,Resources & Corporate Governance,Corporate Property R&M,CPA01,R&M External Contractors,0100,580.60,B3 Architects,147190,04/07/2013,10185719
INSERTED DETAIL,Capital Program ,Queen's Diamond Jubilee Leisure Centre Project,LEI03,Capital Contract Payments,5000,4428.75,B3 Architects,147190,11/07/2013,10187540
INSERTED DETAIL,Resources & Corporate Governance,Handy man,WHM00,External Contractor & Operator,0742,565.33,C H Electrical (Leics) Ltd,147209,25/07/2013,10187686
INSERTED DETAIL,Sustainable Environment ,Violence,CAD01,Subscriptions,0421,571.00,Warwickshire Probation Trust,147331,25/07/2013,10188521
INSERTED DETAIL,Economy Development & Culture,AGM Conservation/Documentation,AGM01,Software Maintenance,0374,1116.84,Adlib Information Systems Ltd,147565,18/07/2013,10187983
INSERTED DETAIL,Resources & Corporate Governance ,Grounds Maintenance,WGM00,Vehicle Repair and Maintenance,0200,1126.47,Chris Tallis Farm Machinery Limited,147758,18/07/2013,10186509
INSERTED DETAIL,Capital Program ,Great Central Walk Bridge,LEI14,Capital Contract Payments,5000,55120.21,Currall Lewis & Martin (Construction) Ltd,147769,25/07/2013,10188513
INSERTED DETAIL,Capital Program ,Great Central Walk Bridge,LEI14,Capital Contract Payments,5000,34086.06,Currall Lewis & Martin (Construction) Ltd,147769,25/07/2013,10188517
INSERTED DETAIL,Capital Program ,Great Central Walk Bridge,LEI14,Capital Contract Payments,5000,62093.14,Currall Lewis & Martin (Construction) Ltd,147769,25/07/2013,10188519
INSERTED DETAIL,Resources & Corporate Governance ,"Communications, Consultation and Information Team",BTR20,Publicity & Marketing,0377,1282.60,Cole Creative Communications Ltd,147857,04/07/2013,10187478
INSERTED DETAIL,Resources & Corporate Governance ,"Communications, Consultation and Information Team",BTR20,Publicity & Marketing,0377,450.00,Cole Creative Communications Ltd,147857,04/07/2013,10187479
INSERTED DETAIL,Resources & Corporate Governance ,"Communications, Consultation and Information Team",BTR20,Publicity & Marketing,0377,1395.00,Cole Creative Communications Ltd,147857,04/07/2013,10187480
INSERTED DETAIL,Resources & Corporate Governance ,"Communications, Consultation and Information Team",BTR20,Publicity & Marketing,0377,3790.00,Cole Creative Communications Ltd,147857,04/07/2013,10187481
INSERTED DETAIL,Resources & Corporate Governance,Corporate Property R&M,CPA01,R&M External Contractors,0100,1100.00,Cole Creative Communications Ltd,147857,11/07/2013,10187769
INSERTED DETAIL,Resources & Corporate Governance ,"Communications, Consultation and Information Team",BTR20,Publicity & Marketing,0377,4090.00,Cole Creative Communications Ltd,147857,11/07/2013,10187770
INSERTED DETAIL,Resources & Corporate Governance ,"Communications, Consultation and Information Team",BTR20,Publicity & Marketing,0377,2533.00,Cole Creative Communications Ltd,147857,11/07/2013,10187771
INSERTED DETAIL,Resources & Corporate Governance ,"Communications, Consultation and Information Team",BTR20,Publicity & Marketing,0377,877.50,Cole Creative Communications Ltd,147857,18/07/2013,10187946
INSERTED DETAIL,Capital Program ,Queen's Diamond Jubilee Leisure Centre Project,LEI03,Capital Contract Payments,5000,967389.21,Shepherd Construction Ltd,148014,18/07/2013,10187854
INSERTED DETAIL,,Balance Sheet,BS,Insurance Recoverable,9232,100.00,Paynes Garages Limited,148024,04/07/2013,10187551
INSERTED DETAIL,Resources & Corporate Governance,Handy man,WHM00,External Contractor & Operator,0742,547.50,Dean Hudson,148035,04/07/2013,10187576
INSERTED DETAIL,Resources & Corporate Governance,Handy man,WHM00,External Contractor & Operator,0742,615.00,Dean Hudson,148035,11/07/2013,10187911
INSERTED DETAIL,Resources & Corporate Governance,Handy man,WHM00,External Contractor & Operator,0742,585.00,Dean Hudson,148035,18/07/2013,10188408
INSERTED DETAIL,Capital Program ,Vehicle Workshop Extension,VWE00,Capital Contract Payments,5000,1485.00,Press & Starkey,148069,25/07/2013,10188718
INSERTED DETAIL,Resources & Corporate Governance ,Customer and Information Strategy,CIS10,Software Maintenance,0374,780.00,NSC Legacydata Solutions Ltd,148083,11/07/2013,10187945
INSERTED DETAIL,Housing Revenue Account ,Sheltered Housing,AGP00,Recruitment Expenses,0012,40.00,Team Prevent UK Ltd,148151,11/07/2013,10187470
INSERTED DETAIL,Economy Development & Culture,The Benn Hall,BHL00,Recruitment Expenses,0012,54.95,Team Prevent UK Ltd,148151,11/07/2013,10187470
INSERTED DETAIL,Economy Development & Culture,Car Parks General,CPK01,Recruitment Expenses,0012,45.83,Team Prevent UK Ltd,148151,11/07/2013,10187470
INSERTED DETAIL,Resources & Corporate Governance,Customer Support Services,CSS00,Recruitment Expenses,0012,40.00,Team Prevent UK Ltd,148151,11/07/2013,10187470
INSERTED DETAIL,Resources & Corporate Governance,Apprenticeship Scheme,CSS25,Recruitment Expenses,0012,57.40,Team Prevent UK Ltd,148151,11/07/2013,10187470
INSERTED DETAIL,Economy Development & Culture,Decrim. of Car Parking on street parking,DPE02,Recruitment Expenses,0012,183.31,Team Prevent UK Ltd,148151,11/07/2013,10187470
INSERTED DETAIL,Economy Development & Culture,Economic Development General,ECD00,Recruitment Expenses,0012,59.00,Team Prevent UK Ltd,148151,11/07/2013,10187470
INSERTED DETAIL,Economy Development & Culture,Positive Futures,LSD04,Recruitment Expenses,0012,19.95,Team Prevent UK Ltd,148151,11/07/2013,10187470
INSERTED DETAIL,Housing Revenue Account ,Estate Management,MAN22,Recruitment Expenses,0012,39.90,Team Prevent UK Ltd,148151,11/07/2013,10187470
INSERTED DETAIL,Housing Revenue Account ,Property Maintenance,MAN23,Recruitment Expenses,0012,52.50,Team Prevent UK Ltd,148151,11/07/2013,10187470
INSERTED DETAIL,Resources & Corporate Governance ,Toilet Cleaning,WBC01,Recruitment Expenses,0012,131.00,Team Prevent UK Ltd,148151,11/07/2013,10187470
INSERTED DETAIL,Resources & Corporate Governance ,Grounds Maintenance,WGM00,Recruitment Expenses,0012,260.00,Team Prevent UK Ltd,148151,11/07/2013,10187470
INSERTED DETAIL,Resources & Corporate Governance ,TREE WORKS,WGM01,Recruitment Expenses,0012,310.00,Team Prevent UK Ltd,148151,11/07/2013,10187470
INSERTED DETAIL,Resources & Corporate Governance,Handy man,WHM00,Recruitment Expenses,0012,85.00,Team Prevent UK Ltd,148151,11/07/2013,10187470
INSERTED DETAIL,Resources & Corporate Governance ,Street Cleansing,WSC00,Recruitment Expenses,0012,37.45,Team Prevent UK Ltd,148151,11/07/2013,10187470
INSERTED DETAIL,Resources & Corporate Governance ,Garage Salaries,WVR03,Recruitment Expenses,0012,19.95,Team Prevent UK Ltd,148151,11/07/2013,10187470
INSERTED DETAIL,Resources & Corporate Governance ,Domestic Waste Collection,WWC00,Recruitment Expenses,0012,117.25,Team Prevent UK Ltd,148151,11/07/2013,10187470
INSERTED DETAIL,Resources & Corporate Governance ,IT Procurement,CMP00,IT Capital Expenditure,5025,640.50,Probrand Limited,148276,18/07/2013,10188141
INSERTED DETAIL,Resources & Corporate Governance ,IT Procurement,CMP00,IT Capital Expenditure,5025,716.80,Probrand Limited,148276,25/07/2013,10188465
INSERTED DETAIL,Resources & Corporate Governance ,IT Procurement,CMP00,IT Capital Expenditure,5025,3781.34,Probrand Limited,148276,25/07/2013,10188466
INSERTED DETAIL,Resources & Corporate Governance ,Garage Internal,WVR01,Vehicle Repair and Maintenance,0200,459.75,Clemas & Co Ltd,148440,11/07/2013,10186882
INSERTED DETAIL,Resources & Corporate Governance,Handy man,WHM00,External Contractor & Operator,0742,780.00,Garforth Scaffolding Ltd,148530,04/07/2013,10186138
INSERTED DETAIL,Sustainable Inclusive Communities,CL Grants,CGS00,Grants To Voluntary Organisations,0720,1500.00,Rugby Foodbank,148531,18/07/2013,10188067
INSERTED DETAIL,Resources & Corporate Governance ,General Financial Services,GFS00,Other Insurance Premiums,0440,10895.98,JLT Specialty Limited,148557,18/07/2013,10187153
INSERTED DETAIL,Resources & Corporate Governance ,General Financial Services,GFS00,External Contractor & Operator,0742,1875.00,Arlingclose Ltd,148743,25/07/2013,10188739
INSERTED DETAIL,Economy Development & Culture,Economic Development General,ECD00,Consultancy Costs,0740,1750.00,Deloitte,148797,11/07/2013,10187915
INSERTED DETAIL,Resources & Corporate Governance ,Human Resources Centralised Services,RES31,Training fees,0011,1374.00,The Conflict Training Company Ltd,148812,11/07/2013,10187944
INSERTED DETAIL,Resources & Corporate Governance ,IT Procurement,CMP00,IT Capital Expenditure,5025,2406.29,Sapphire Network Services Ltd,148862,11/07/2013,10187908
INSERTED DETAIL,Capital Program ,Queen's Diamond Jubilee Leisure Centre Project,LEI03,Capital Contract Payments,5000,1187.33,Portakabin Ltd,148919,18/07/2013,10187535
INSERTED DETAIL,Capital Program ,Kitchen Modifications,HIK10,Capital Contract Payments,5000,900.00,Capita Symonds Ltd,148946,04/07/2013,10187459
INSERTED DETAIL,Capital Program ,Vending Machine Replacement,VMR00,Hospitality,0331,1272.00,LTT Vending Group,148982,18/07/2013,10188440
INSERTED DETAIL,Sustainable Environment ,Caldecott Park/Town Centre Area,PKS00,External Contractor & Operator,0742,1500.00,Woodward Turf Care Ltd,149024,18/07/2013,10187138
INSERTED DETAIL,Resources & Corporate Governance,Corporate Property R&M,CPA01,R&M External Contractors,0100,1769.97,KAD Flooring Ltd,149051,04/07/2013,10187201
INSERTED DETAIL,Resources & Corporate Governance,Handy man,WHM00,External Contractor & Operator,0742,500.00,PJR Services,149062,18/07/2013,10188411
INSERTED DETAIL,Housing Revenue Account ,Property Maintenance,MAN23,Training fees,0011,849.00,GA Training,149084,04/07/2013,10187288
INSERTED DETAIL,Housing Revenue Account ,Property Maintenance,MAN23,Training fees,0011,417.95,Midlands Gas Assessments Birmingham Ltd,149086,04/07/2013,10187438
INSERTED DETAIL,Sustainable Inclusive Communities,Woodside Park,TVR00,External Legal Costs,0741,700.00,The Bailiff Company,149091,04/07/2013,10187601
INSERTED DETAIL,Economy Development & Culture,AGM Exhibitions/Outreach,AGM02,Other Miscellaneous Expenses,0444,800.00,Iris Anne Berger,149096,11/07/2013,10187530
INSERTED DETAIL,Capital Program ,Corporate Property Enhancements,CPE00,Capital Contract Payments,5000,850.00,Cad-Capture,149101,11/07/2013,10187652
INSERTED DETAIL,Resources & Corporate Governance ,General Administration,WAD00,Training fees,0011,555.00,Kingfisher Access Ltd,149103,04/07/2013,10187671
INSERTED DETAIL,Sustainable Environment,Regulatory Services,REG00,External Legal Costs,0741,7000.00,REDACTED PERSONAL DATA,149111,11/07/2013,10187703
INSERTED DETAIL,Economy Development & Culture,The Benn Hall,BHL00,New Equipment,0300,1776.57,ICOMM Technologies Ltd,149115,25/07/2013,10188478
INSERTED DETAIL,Sustainable Inclusive Communities,CL Grants,CGS00,Grants To Voluntary Organisations,0720,1000.00,Warwickshire Association for the Blind,149127,18/07/2013,10188184
detail,Economy Development & Culture,Visitor Centre,VSC00,Events Tickets - Standard Rated,1404,783.90,Stringfest Events UK,149136,25/07/2013,10188844
,,Balance Sheet,BS,Cov & Warks Pooling Fund,9476,1380109.00,Cov & Warks Pooling Fund,,19/07/2013,28725
,,Balance Sheet,BS,Business Rate Retention Scheme payment,9476,2118341.00,CLG,,22/07/2013,28745
,,Balance Sheet,BS,Business Rate Retention Scheme payment,9476,424665.00,WCC County Fund,,22/07/2013,28744
,Sustainable Enironment,Caldecott Park Caf� & Benn Hall,WGM02,Purchases for Resale,0303,1149.27,Booker Ltd,,23/07/2013,28760
,Resources & Corporate Governance ,General Financial Services,GFS00,Payment Card Costs,0444,1014.07,Capita,,23/07/2013,28776
,Housing Revenue Account ,Supervision and Management General,MAN00,Repayment,0444,3595.65,Mr R Saunders,,26/07/2013,28791
,Economy Development & Culture,Car Parks General,HKC01,Payment Card Costs,0444,968.00,CRB,,15/07/2013,28773
,Capital Program ,Vehiicles,VHC00,Vehicles  Purchase,5020,287371.20,Heilfarid European Company,,01/07/2013,28581
